fUST/lending_fUST_20260607
["ID","MTS","AMOUNT","RATE_DAILY","PERIOD"]
[424345137,1780771840000,-205.9648586,0.00018975,2]
[424345179,1780771840000,-928.35811636,0.00019342,2]
[424345174,1780771840000,-203.233,0.00019267,2]
[424345173,1780771840000,-655.2,0.00019267,2]
[424345177,1780771840000,-1041.03452057,0.00019342,2]
[424345169,1780771840000,-1415.0,0.00019267,2]
[424345175,1780771840000,-500.0,0.00019319,2]
[424345199,1780771840000,-3697.0199993,0.0001957,2]
[424345180,1780771840000,-857.00243782,0.00019342,2]
[424345193,1780771840000,-822.53220186,0.00019349,2]
[424345182,1780771840000,-954.94449725,0.00019342,2]
[424345192,1780771840000,-882.56494239,0.00019349,2]
[424345184,1780771840000,-894.55257291,0.00019342,2]
[424345185,1780771840000,-904.83587487,0.00019342,2]
[424345176,1780771840000,-876.23482815,0.00019333,2]
[424345183,1780771840000,-1174.82412964,0.00019342,2]
[424345186,1780771840000,-901.17686699,0.00019342,2]
[424345187,1780771840000,-919.81540932,0.00019342,2]
[424345188,1780771840000,-809.14856859,0.00019342,2]
[424345189,1780771840000,-901.21463498,0.00019342,2]
[424345191,1780771840000,-1029.41597257,0.00019349,2]
[424345194,1780771840000,-1010.95937369,0.00019349,2]
[424345196,1780771840000,-895.50145657,0.0001948,2]
[424345195,1780771840000,-436.85029348,0.00019367,2]
[424345197,1780771840000,-161.48,0.00019512,2]
[424345198,1780771840000,-740.144144,0.0001957,2]
[424345202,1780771840000,-8365.80293584,0.000197,2]
[424345201,1780771840000,-168.94243977,0.000197,2]
[424345139,1780771840000,-685.60195025,0.00018975,2]
[424345190,1780771840000,-978.43758531,0.00019349,2]
[424345178,1780771840000,-805.0679053,0.00019342,2]
[424345200,1780771840000,-1593.40282937,0.00019624,7]
[424345171,1780771840000,-2207.0,0.00019267,2]
[424345141,1780771840000,-405.81007597,0.00018975,2]
[424345172,1780771840000,-444.0,0.00019267,2]
[424345150,1780771840000,-586.14053075,0.00018975,2]
[424345143,1780771840000,-715.64205833,0.00018975,2]
[424345142,1780771840000,-939.85930371,0.00018975,2]
[424345152,1780771840000,-823.53277806,0.00018982,2]
[424345151,1780771840000,-782.75006825,0.00018982,2]
[424345154,1780771840000,-379.32927314,0.00018982,2]
[424345146,1780771840000,-735.85232746,0.00018975,2]
[424345153,1780771840000,-706.05195391,0.00018982,2]
[424345144,1780771840000,-488.19363209,0.00018975,2]
[424345148,1780771840000,-647.31885487,0.00018975,2]
[424345147,1780771840000,-359.13482917,0.00018975,2]
[424345149,1780771840000,-720.97170798,0.00018975,2]
[424345145,1780771840000,-720.9414936,0.00018975,2]
[424345156,1780771840000,-739.17154911,0.00018982,2]
[424345170,1780771840000,-1837.0,0.00019267,2]
[424345168,1780771840000,-651.25,0.00019257,3]
[424345162,1780771840000,-664.60368548,0.00019004,2]
[424345163,1780771840000,-181.14617634,0.00019035,7]
[424345167,1780771840000,-882.789526,0.00019106,2]
[424345165,1780771840000,-500.0,0.00019037,3]
[424345160,1780771840000,-154.26284247,0.00018983,2]
[424345158,1780771840000,-808.76749895,0.00018982,2]
[424345161,1780771840000,-493.1474548,0.00018983,2]
[424345159,1780771840000,-332.32494334,0.00018982,2]
[424345157,1780771840000,-658.02576149,0.00018982,2]
[424345155,1780771840000,-362.22020075,0.00018982,2]
[424345166,1780771840000,-174.41136907,0.00019037,4]
[424345164,1780771840000,-500.0,0.00019037,2]
[424345247,1780771841000,-10441.52794543,0.000203,2]
[424345250,1780771841000,-167.04622,0.00020303,2]
[424345244,1780771841000,-794.84687472,0.00020272,2]
[424345242,1780771841000,-454.94219247,0.000201,2]
[424345235,1780771841000,-487.0,0.00020071,2]
[424345237,1780771841000,-487.0,0.00020071,2]
[424345240,1780771841000,-10441.52794543,0.000201,2]
[424345236,1780771841000,-487.0,0.00020071,2]
[424345239,1780771841000,-256.201743,0.0002009,2]
[424345232,1780771841000,-420.86860953,0.00019919,2]
[424345238,1780771841000,-574.37,0.00020071,2]
[424345248,1780771841000,-303.29479498,0.000203,2]
[424345243,1780771841000,-158.44,0.00020246,2]
[424345245,1780771841000,-187.333458,0.00020286,2]
[424345249,1780771841000,-454.94219247,0.000203,2]
[424345252,1780771841000,-2365.54,0.00020342,3]
[424345246,1780771841000,-384.302613,0.00020286,2]
[424345253,1780771841000,-651.24,0.00020342,3]
[424345255,1780771841000,-10441.52794543,0.000205,2]
[424345265,1780771841000,-151.0,0.00020799,2]
[424345266,1780771841000,-154.30311616,0.00020799,2]
[424345254,1780771841000,-325.62,0.00020342,3]
[424345259,1780771841000,-10441.52794543,0.000207,2]
[424345257,1780771841000,-454.94219247,0.000205,2]
[424345234,1780771841000,-487.0,0.00020071,2]
[424345261,1780771841000,-1644.7537815,0.00020718,2]
[424345251,1780771841000,-222.164715,0.00020303,2]
[424345233,1780771841000,-546.193,0.00020071,2]
[424345214,1780771841000,-1051.48179378,0.00019883,2]
[424345241,1780771841000,-303.29479498,0.000201,2]
[424345256,1780771841000,-303.29479498,0.000205,2]
[424345205,1780771841000,-190.34962631,0.000197,2]
[424345203,1780771841000,-2075.72500959,0.000197,2]
[424345204,1780771841000,-303.29479498,0.000197,2]
[424345207,1780771841000,-151.122538,0.000197,2]
[424345218,1780771841000,-1409.78895557,0.00019892,2]
[424345217,1780771841000,-1114.02973963,0.00019892,2]
[424345206,1780771841000,-454.94219247,0.000197,2]
[424345216,1780771841000,-966.08148636,0.00019892,2]
[424345208,1780771841000,-196.4234568,0.00019704,2]
[424345210,1780771841000,-160.0,0.00019711,2]
[424345213,1780771841000,-505.74714309,0.00019867,2]
[424345211,1780771841000,-186.47,0.0001973,2]
[424345209,1780771841000,-160.0,0.00019711,2]
[424345212,1780771841000,-556.7996497,0.00019826,2]
[424345215,1780771841000,-600.0,0.00019887,2]
[424345219,1780771841000,-1073.4630875,0.00019892,2]
[424345224,1780771841000,-500.0,0.00019899,3]
[424345221,1780771841000,-970.97828231,0.00019892,2]
[424345223,1780771841000,-500.0,0.00019899,2]
[424345222,1780771841000,-1081.45756197,0.00019892,2]
[424345226,1780771841000,-168.94243977,0.000199,2]
[424345225,1780771841000,-987.03864223,0.00019899,2]
[424345228,1780771841000,-303.29479498,0.000199,2]
[424345220,1780771841000,-1081.41224039,0.00019892,2]
[424345227,1780771841000,-10441.52794543,0.000199,2]
[424345231,1780771841000,-882.789526,0.0001991,2]
[424345230,1780771841000,-454.94219247,0.000199,2]
[424345260,1780771841000,-882.789526,0.00020714,2]
[424345229,1780771841000,-190.34962631,0.000199,2]
[424345262,1780771841000,-1261.64761379,0.00020718,2]
[424345296,1780771841000,-1000.0,0.00021602,5]
[424345297,1780771841000,-326.3532857,0.00021644,2]
[424345298,1780771841000,-184.81,0.00021706,2]
[424345299,1780771841000,-192.745639,0.00021747,2]
[424345300,1780771841000,-155.0,0.00021753,5]
[424345302,1780771841000,-10441.52794543,0.000218,2]
[424345301,1780771841000,-224.172418,0.00021756,2]
[424345304,1780771841000,-720.0,0.00021876,10]
[424345313,1780771841000,-204.218182,0.00022108,14]
[424345314,1780771841000,-726.72560964,0.00022119,2]
[424345303,1780771841000,-184.82674778,0.00021806,2]
[424345305,1780771841000,-185.16793,0.00021918,2]
[424345309,1780771841000,-10441.52794543,0.00022,2]
[424345307,1780771841000,-1441.88298719,0.00021956,2]
[424345308,1780771841000,-1294.63770975,0.00021956,2]
[424345310,1780771841000,-822.0,0.00022014,2]
[424345312,1780771841000,-182.109091,0.00022108,14]
[424345311,1780771841000,-160.0,0.00022108,14]
[424345315,1780771841000,-196.957819,0.00022124,14]
[424345316,1780771841000,-333.65758245,0.00022154,2]
[424345320,1780771841000,-158.0,0.00022231,30]
[424345319,1780771841000,-151.0,0.000222,8]
[424345322,1780771841000,-1837.0,0.00022267,2]
[424345317,1780771841000,-353.810376,0.00022172,14]
[424345321,1780771841000,-1415.0,0.00022267,2]
[424345318,1780771841000,-10441.52794543,0.000222,2]
[424345263,1780771841000,-1132.80799603,0.00020718,2]
[424345292,1780771841000,-10441.52794543,0.000215,2]
[424345295,1780771841000,-882.789526,0.00021518,2]
[424345306,1780771841000,-1879.71860743,0.00021956,2]
[424345293,1780771841000,-151.0,0.000215,3]
[424345258,1780771841000,-1302.5,0.00020627,3]
[424345294,1780771841000,-462.644416,0.00021512,2]
[424345264,1780771841000,-1397.82180487,0.00020799,2]
[424345269,1780771841000,-10441.52794543,0.000209,2]
[424345267,1780771841000,-151.0,0.000208,3]
[424345271,1780771841000,-151.0,0.00020986,2]
[424345270,1780771841000,-151.0,0.00020986,2]
[424345272,1780771841000,-151.0,0.00020986,2]
[424345268,1780771841000,-4530.34310998,0.00020819,2]
[424345278,1780771841000,-151.0,0.00021,2]
[424345277,1780771841000,-3106.80311441,0.00021,2]
[424345276,1780771841000,-150.0,0.00021,2]
[424345275,1780771841000,-325.2556416,0.00020986,2]
[424345274,1780771841000,-326.3657545,0.00020986,2]
[424345279,1780771841000,-151.0,0.00021,2]
[424345290,1780771841000,-151.0,0.000213,2]
[424345280,1780771841000,-151.0,0.00021,2]
[424345284,1780771841000,-565.964563,0.000211,2]
[424345283,1780771841000,-565.964563,0.000211,2]
[424345282,1780771841000,-10441.52794543,0.000211,2]
[424345286,1780771841000,-565.964563,0.000211,2]
[424345288,1780771841000,-10441.52794543,0.000213,2]
[424345289,1780771841000,-151.0,0.000213,2]
[424345291,1780771841000,-326.3532856,0.00021315,2]
[424345287,1780771841000,-326.3657545,0.00021151,2]
[424345285,1780771841000,-565.964563,0.000211,2]
[424345273,1780771841000,-151.0,0.00020986,2]
[424345281,1780771841000,-151.0,0.00021,2]
[424345363,1780771842000,-151.0,0.00023444,2]
[424345364,1780771842000,-151.0,0.00023444,2]
[424345351,1780771842000,-387.0764642,0.00023288,2]
[424345365,1780771842000,-151.0,0.00023444,2]
[424345366,1780771842000,-151.0,0.00023444,2]
[424345360,1780771842000,-107202.1528,0.00023444,2]
[424345357,1780771842000,-565.964563,0.00023385,2]
[424345358,1780771842000,-565.964563,0.00023385,2]
[424345356,1780771842000,-565.964563,0.00023385,2]
[424345355,1780771842000,-565.964563,0.00023385,2]
[424345367,1780771842000,-151.0,0.00023444,2]
[424345359,1780771842000,-160.0,0.000234,3]
[424345368,1780771842000,-269.243024,0.00023444,2]
[424345379,1780771842000,-1622.11836059,0.00023813,2]
[424345374,1780771842000,-326.3819855,0.00023452,2]
[424345376,1780771842000,-1451.93,0.000238,14]
[424345372,1780771842000,-565.964563,0.00023444,2]
[424345370,1780771842000,-565.964563,0.00023444,2]
[424345369,1780771842000,-565.964563,0.00023444,2]
[424345373,1780771842000,-153.446093,0.00023444,2]
[424345371,1780771842000,-565.964563,0.00023444,2]
[424345388,1780771842000,-318.51771261,0.00024107,2]
[424345378,1780771842000,-2114.68343336,0.00023813,2]
[424345389,1780771842000,-353.20866002,0.00024107,2]
[424345383,1780771842000,-400.0,0.00023835,5]
[424345380,1780771842000,-1200.0,0.00023835,5]
[424345384,1780771842000,-246.606193,0.00023905,14]
[424345353,1780771842000,-160.0,0.000233,3]
[424345375,1780771842000,-151.0,0.000236,9]
[424345354,1780771842000,-825.0,0.00023385,3]
[424345327,1780771842000,-10441.52794543,0.000224,2]
[424345352,1780771842000,-825.0,0.00023294,3]
[424345325,1780771842000,-185.0,0.00022267,2]
[424345326,1780771842000,-882.789526,0.00022323,2]
[424345390,1780771842000,-327.7815868,0.0002411,2]
[424345324,1780771842000,-444.0,0.00022267,2]
[424345323,1780771842000,-2207.0,0.00022267,2]
[424345329,1780771842000,-151.0,0.000224,2]
[424345338,1780771842000,-151.0,0.000226,2]
[424345330,1780771842000,-151.0,0.000224,2]
[424345339,1780771842000,-151.0,0.000226,2]
[424345331,1780771842000,-151.0,0.000224,2]
[424345337,1780771842000,-151.0,0.000226,2]
[424345328,1780771842000,-151.0,0.000224,2]
[424345333,1780771842000,-151.0,0.000224,2]
[424345335,1780771842000,-10441.52794543,0.000226,2]
[424345336,1780771842000,-151.0,0.000226,2]
[424345332,1780771842000,-795.0,0.000224,2]
[424345334,1780771842000,-825.0,0.00022512,2]
[424345340,1780771842000,-201.755176,0.00022844,14]
[424345344,1780771842000,-160.0,0.00023,2]
[424345342,1780771842000,-166.62,0.00022963,10]
[424345343,1780771842000,-823.0,0.00022985,3]
[424345348,1780771842000,-218.530909,0.00023213,14]
[424345346,1780771842000,-636.04074161,0.00023156,7]
[424345349,1780771842000,-158.0,0.00023231,30]
[424345347,1780771842000,-152.0,0.0002317,30]
[424345341,1780771842000,-151.0,0.000229,9]
[424345345,1780771842000,-882.789526,0.00023127,2]
[424345361,1780771842000,-151.0,0.00023444,2]
[424345350,1780771842000,-212.286226,0.0002328,14]
[424345362,1780771842000,-151.0,0.00023444,2]
[424345385,1780771842000,-164.404129,0.00023905,14]
[424345413,1780771842000,-151.0,0.00024394,2]
[424345382,1780771842000,-1200.0,0.00023835,5]
[424345424,1780771842000,-200.49480075,0.000244,2]
[424345381,1780771842000,-1200.0,0.00023835,5]
[424345428,1780771842000,-158.0,0.00024461,120]
[424345420,1780771842000,-151.0,0.00024394,3]
[424345426,1780771842000,-167.90615314,0.00024455,120]
[424345429,1780771842000,-151.0,0.00024477,2]
[424345431,1780771842000,-151.0,0.00024477,2]
[424345427,1780771842000,-170.0,0.00024455,120]
[424345432,1780771842000,-151.0,0.00024477,2]
[424345433,1780771842000,-151.0,0.00024477,2]
[424345443,1780771842000,-660.79008071,0.00024484,2]
[424345435,1780771842000,-195.067999,0.00024477,2]
[424345434,1780771842000,-151.0,0.00024477,2]
[424345425,1780771842000,-157.0,0.00024455,120]
[424345436,1780771842000,-151.0,0.00024477,2]
[424345447,1780771842000,-204.27921981,0.00024484,2]
[424345437,1780771842000,-151.0,0.00024477,2]
[424345446,1780771842000,-391.15098252,0.00024484,2]
[424345438,1780771842000,-151.0,0.00024477,2]
[424345440,1780771842000,-247.16815,0.00024477,2]
[424345439,1780771842000,-151.0,0.00024477,2]
[424345442,1780771842000,-357787.3862942,0.00024484,7]
[424345448,1780771842000,-4500.0,0.00024484,2]
[424345450,1780771842000,-3194.69540245,0.00024484,2]
[424345453,1780771842000,-3824.09756223,0.00024484,2]
[424345452,1780771842000,-262.37285522,0.00024484,2]
[424345451,1780771842000,-152.52726369,0.00024484,2]
[424345449,1780771842000,-323.39721989,0.00024484,5]
[424345444,1780771842000,-2920.0,0.00024484,2]
[424345430,1780771842000,-151.0,0.00024477,2]
[424345423,1780771842000,-270.035,0.00024394,3]
[424345422,1780771842000,-151.0,0.00024394,3]
[424345386,1780771842000,-223.313652,0.00023905,14]
[424345387,1780771842000,-864.0,0.00024063,10]
[424345391,1780771842000,-252.733053,0.00024124,14]
[424345393,1780771842000,-151.31193063,0.00024194,2]
[424345395,1780771842000,-158.0,0.00024231,30]
[424345397,1780771842000,-151.0,0.000243,8]
[424345394,1780771842000,-1000.0,0.000242,5]
[424345405,1780771842000,-2000.0,0.00024393,120]
[424345403,1780771842000,-3128.05008261,0.00024384,2]
[424345396,1780771842000,-528.6,0.000243,30]
[424345421,1780771842000,-151.0,0.00024394,3]
[424345400,1780771842000,-500.0,0.0002437,9]
[424345398,1780771842000,-151.0,0.00024336,6]
[424345401,1780771842000,-501.53919032,0.0002437,9]
[424345399,1780771842000,-1474.97321021,0.00024336,120]
[424345392,1780771842000,-1414.69018,0.0002418,5]
[424345419,1780771842000,-299.059,0.00024394,2]
[424345416,1780771842000,-151.0,0.00024394,2]
[424345402,1780771842000,-14984.12998716,0.00024383,120]
[424345415,1780771842000,-151.0,0.00024394,2]
[424345414,1780771842000,-151.0,0.00024394,2]
[424345408,1780771842000,-307.06925777,0.00024394,120]
[424345412,1780771842000,-203.29116952,0.00024394,120]
[424345411,1780771842000,-748.61330173,0.00024394,120]
[424345410,1780771842000,-830.54617014,0.00024394,120]
[424345418,1780771842000,-151.0,0.00024394,2]
[424345417,1780771842000,-151.0,0.00024394,2]
[424345406,1780771842000,-320.11922034,0.00024394,120]
[424345407,1780771842000,-415.79344599,0.00024394,120]
[424345409,1780771842000,-318.55968363,0.00024394,120]
[424345462,1780771843000,-3979.79495129,0.00024484,2]
[424345457,1780771843000,-9525.48087348,0.00024484,2]
[424345455,1780771843000,-679.10985556,0.00024484,2]
[424345456,1780771843000,-89790.66062769,0.00024484,7]
[424345454,1780771843000,-158.0,0.00024484,10]
[424345458,1780771843000,-328.47033806,0.00024484,2]
[424345459,1780771843000,-247.74802927,0.00024484,10]
[424345460,1780771843000,-1058.75335343,0.00024484,2]
[424345461,1780771843000,-160.0,0.00024484,2]
[424345464,1780771843000,-3000.0,0.00024484,7]
[424345471,1780771843000,-221689.19644642,0.00024484,2]
[424345470,1780771843000,-500.0,0.00024484,10]
[424345468,1780771843000,-295.0560232,0.00024484,2]
[424345472,1780771843000,-1000.67774037,0.00024484,2]
[424345463,1780771843000,-1300.0,0.00024484,2]
[424345466,1780771843000,-600.67349122,0.00024484,2]
[424345469,1780771843000,-118450.6853893,0.00024484,2]
[424345467,1780771843000,-162.18756286,0.00024484,2]
[424345465,1780771843000,-960.18501657,0.00024484,7]
[424345489,1780771846000,-9322.88631299,0.00024484,2]
[424345488,1780771846000,-13906.22813333,0.00024484,2]
[424345493,1780772168000,333.33333333,0.00024483,120]
[424345492,1780772168000,333.33333333,0.00024483,120]
[424345491,1780772168000,333.33333333,0.00024483,120]
[424345494,1780772212000,-5000.0,0.00012698,2]
[424345495,1780772265000,-267.06361856,0.00012824,2]
[424345504,1780772622000,-5000.0,0.00012442,2]
[424345584,1780772676000,-2914.09104453,0.00012594,2]
[424345585,1780772729000,-300.0,0.00012691,2]
[424345586,1780772747000,-357.26982633,0.00012692,2]
[424345587,1780772783000,-142.73017367,0.00012692,2]
[424345588,1780772836000,-500.0,0.00012692,2]
[424345589,1780772889000,-460.96818549,0.00012692,2]
[424345625,1780773032000,-3614.14654064,0.00012439,2]
[424345664,1780773038000,-500.0,0.00012564,2]
[424345649,1780773038000,-500.0,0.00012564,2]
[424345652,1780773038000,-500.0,0.00012564,2]
[424345653,1780773038000,-500.0,0.00012564,2]
[424345654,1780773038000,-500.0,0.00012564,2]
[424345656,1780773038000,-445.53649503,0.00012564,2]
[424345655,1780773038000,-500.0,0.00012564,2]
[424345648,1780773038000,-500.0,0.00012564,2]
[424345657,1780773038000,-500.0,0.00012564,2]
[424345660,1780773038000,-540.65489411,0.00012564,2]
[424345659,1780773038000,-500.0,0.00012564,2]
[424345663,1780773038000,-500.0,0.00012564,2]
[424345661,1780773038000,-500.0,0.00012564,2]
[424345666,1780773038000,-500.0,0.00012564,2]
[424345662,1780773038000,-500.0,0.00012564,2]
[424345658,1780773038000,-500.0,0.00012564,2]
[424345650,1780773038000,-500.0,0.00012564,2]
[424345636,1780773038000,-500.0,0.00012564,2]
[424345647,1780773038000,-500.0,0.00012564,2]
[424345632,1780773038000,-336.30242085,0.00012564,2]
[424345631,1780773038000,-1385.85345936,0.00012439,2]
[424345633,1780773038000,-500.0,0.00012564,2]
[424345634,1780773038000,-500.0,0.00012564,2]
[424345638,1780773038000,-500.0,0.00012564,2]
[424345640,1780773038000,-500.0,0.00012564,2]
[424345637,1780773038000,-500.0,0.00012564,2]
[424345651,1780773038000,-500.0,0.00012564,2]
[424345635,1780773038000,-500.0,0.00012564,2]
[424345639,1780773038000,-500.0,0.00012564,2]
[424345641,1780773038000,-500.0,0.00012564,2]
[424345642,1780773038000,-500.0,0.00012564,2]
[424345643,1780773038000,-500.0,0.00012564,2]
[424345646,1780773038000,-500.0,0.00012564,2]
[424345644,1780773038000,-500.0,0.00012564,2]
[424345645,1780773038000,-500.0,0.00012564,2]
[424345665,1780773038000,-500.0,0.00012564,2]
[424345668,1780773038000,-500.0,0.00012564,2]
[424345667,1780773038000,-500.0,0.00012564,2]
[424345696,1780773038000,-300.0,0.00013214,2]
[424345688,1780773038000,-300.0,0.00013214,2]
[424345687,1780773038000,-300.0,0.00013214,2]
[424345692,1780773038000,-300.0,0.00013214,2]
[424345694,1780773038000,-300.0,0.00013214,2]
[424345695,1780773038000,-300.0,0.00013214,2]
[424345697,1780773038000,-300.0,0.00013214,2]
[424345669,1780773038000,-5000.0,0.00012565,2]
[424345689,1780773038000,-300.0,0.00013214,2]
[424345698,1780773038000,-300.0,0.00013214,2]
[424345703,1780773038000,-500.42897601,0.00013698,2]
[424345702,1780773038000,-500.0,0.00013698,2]
[424345701,1780773038000,-300.0,0.00013214,2]
[424345699,1780773038000,-300.0,0.00013214,2]
[424345705,1780773038000,-220.3956349,0.0001468,2]
[424345704,1780773038000,-1519.376264,0.00013989,2]
[424345706,1780773038000,-2549.82966399,0.00014945,2]
[424345700,1780773038000,-300.0,0.00013214,2]
[424345691,1780773038000,-300.0,0.00013214,2]
[424345693,1780773038000,-300.0,0.00013214,2]
[424345690,1780773038000,-300.0,0.00013214,2]
[424345670,1780773038000,-305.89450661,0.00012691,2]
[424345671,1780773038000,-194.10549339,0.00012691,2]
[424345672,1780773038000,-547.34183149,0.00012691,2]
[424345674,1780773038000,-500.0,0.00012691,2]
[424345684,1780773038000,-210.62633607,0.00012956,2]
[424345678,1780773038000,-500.0,0.00012691,2]
[424345675,1780773038000,-500.0,0.00012691,2]
[424345677,1780773038000,-500.0,0.00012691,2]
[424345673,1780773038000,-294.38897514,0.00012691,2]
[424345679,1780773038000,-500.0,0.00012691,2]
[424345680,1780773038000,-500.0,0.00012691,2]
[424345682,1780773038000,-5644.0208659,0.00012779,2]
[424345681,1780773038000,-523.452,0.00012694,2]
[424345683,1780773038000,-570.87990805,0.00012956,2]
[424345685,1780773038000,-7256.2426719,0.00013142,2]
[424345676,1780773038000,-500.0,0.00012691,2]
[424345686,1780773038000,-500.0,0.00013214,2]
[424345721,1780773039000,-228.97466698,0.00016241,7]
[424345720,1780773039000,-2883.7498,0.00016171,2]
[424345722,1780773039000,-2883.7498,0.00016824,2]
[424345726,1780773039000,-156.59710631,0.0001726,2]
[424345724,1780773039000,-161.21198178,0.0001726,2]
[424345728,1780773039000,-208.47269468,0.00017288,2]
[424345718,1780773039000,-2883.7498,0.00015518,2]
[424345723,1780773039000,-164.78518969,0.00017259,2]
[424345716,1780773039000,-500.0,0.0001518,4]
[424345727,1780773039000,-205.78559586,0.00017288,2]
[424345717,1780773039000,-1000.0,0.00015336,2]
[424345714,1780773039000,-500.0,0.0001518,2]
[424345713,1780773039000,-343.247869,0.00015068,2]
[424345715,1780773039000,-500.0,0.0001518,3]
[424345710,1780773039000,-948.86,0.00015044,2]
[424345708,1780773039000,-1326.92,0.00015044,2]
[424345709,1780773039000,-500.0,0.00015044,2]
[424345707,1780773039000,-500.0,0.00015044,2]
[424345719,1780773039000,-173.0,0.00015726,3]
[424345725,1780773039000,-184.99203544,0.0001726,2]
[424345711,1780773039000,-623.88,0.00015044,2]
[424345732,1780773039000,-153.3518509,0.00017288,2]
[424345729,1780773039000,-192.74921281,0.00017288,2]
[424345746,1780773039000,-43748.12847055,0.00017699,2]
[424345747,1780773039000,-431775.42356209,0.00017699,2]
[424345748,1780773039000,-438.77080437,0.00017699,2]
[424345749,1780773039000,-506074.41016477,0.00017799,2]
[424345745,1780773039000,-35387.70465493,0.00017699,2]
[424345743,1780773039000,-19488.3233959,0.00017699,2]
[424345742,1780773039000,-86724.24552094,0.00017699,2]
[424345744,1780773039000,-94327.85908056,0.00017699,2]
[424345740,1780773039000,-264.66,0.00017689,3]
[424345712,1780773039000,-1153.2,0.00015044,2]
[424345738,1780773039000,-155.22063502,0.00017307,2]
[424345741,1780773039000,-794.0,0.00017689,3]
[424345730,1780773039000,-224.09778414,0.00017288,2]
[424345737,1780773039000,-160.66861815,0.00017307,2]
[424345736,1780773039000,-171.35461227,0.00017307,2]
[424345733,1780773039000,-187.361898,0.00017288,2]
[424345735,1780773039000,-157.5773752,0.00017307,2]
[424345734,1780773039000,-195.31734876,0.00017307,2]
[424345731,1780773039000,-271.22688734,0.00017288,2]
[424345739,1780773039000,-2883.7498,0.00017477,2]
[424345759,1780773043000,-516.28705968,0.00017799,2]
[424345766,1780773046000,-4772.15702467,0.00017621,2]
[424345765,1780773046000,-300.0,0.00012691,2]
[424345767,1780773217000,200000.0,0.00024538,30]
[424345768,1780773368000,166.66666667,0.00024538,120]
[424345770,1780773368000,166.66666667,0.00024538,120]
[424345769,1780773368000,166.66666667,0.00024538,120]
[424345774,1780774008000,-1000.0,9.703e-05,2]
[424345775,1780774010000,-1000.0,9.703e-05,2]
[424345776,1780774015000,-1000.0,9.606e-05,2]
[424345777,1780774034000,-575.87644931,9.606e-05,2]
[424345778,1780774158000,-3015.40985982,9.606e-05,2]
[424345779,1780774158000,-3000.0,9.703e-05,2]
[424345780,1780774158000,-500.0,9.897e-05,2]
[424345781,1780774158000,-500.0,9.897e-05,2]
[424345782,1780774158000,-500.0,9.897e-05,2]
[424345783,1780774158000,-500.0,9.897e-05,2]
[424345785,1780774158000,-465.49430372,9.897e-05,2]
[424345784,1780774158000,-500.0,9.897e-05,2]
[424345786,1780774158000,-500.0,9.897e-05,2]
[424345788,1780774158000,-500.0,9.897e-05,2]
[424345787,1780774158000,-500.0,9.897e-05,2]
[424345789,1780774158000,-227.34877603,9.897e-05,2]
[424345791,1780774158000,-300.0,9.898e-05,2]
[424345793,1780774158000,-300.0,0.00010199,2]
[424345792,1780774158000,-505.17239861,0.0001,2]
[424345795,1780774158000,-300.0,0.00010199,2]
[424345794,1780774158000,-300.0,0.00010199,2]
[424345796,1780774158000,-300.0,0.00010199,2]
[424345797,1780774158000,-300.0,0.00010199,2]
[424345799,1780774158000,-300.0,0.00010199,2]
[424345798,1780774158000,-300.0,0.00010199,2]
[424345800,1780774158000,-294.1170113,0.00010199,2]
[424345790,1780774158000,-300.0,9.898e-05,2]
[424345801,1780774163000,-5.8829887,0.00010199,2]
[424345803,1780774163000,-300.0,0.00010199,2]
[424345804,1780774163000,-300.0,0.00010199,2]